bitfinex-derivatives/quotes_ETHF0:USTF0_20260117
["timestamp","ask_amount","ask_price","bid_price","bid_amount"]
[1768673464237,1.03370966,3319.4,3317.6,0.25310129]
[1768673464427,0.97166123,3319.6,3317.6,0.25310129]
[1768673464627,1.03388978,3319.5,3317.6,0.25310129]
[1768673464921,1.03388978,3319.4,3317.6,0.25310129]
[1768673465120,1.03388978,3319.3,3317.6,0.25310129]
[1768673465321,0.97166123,3319.6,3317.6,0.25310129]
[1768673465520,1.03421815,3319.5,3317.6,0.25310129]
[1768673465736,1.03421815,3319.4,3317.6,0.25310129]
[1768673465938,0.97166123,3319.6,3317.6,0.25310129]
[1768673466146,1.03421867,3319.5,3317.6,0.25310129]
[1768673466439,1.03421867,3319.4,3317.6,0.25310129]
[1768673466737,1.03421867,3319.3,3317.6,0.25310129]
[1768673466939,0.97166123,3319.6,3317.6,0.25310129]
[1768673467134,1.03465539,3319.5,3317.6,0.25310129]
[1768673467336,1.03465539,3319.4,3317.6,0.25310129]
[1768673467535,1.03465539,3319.3,3317.6,0.25310129]
[1768673467833,1.03465539,3319.2,3317.6,0.25310129]
[1768673468036,0.97166123,3319.6,3317.6,0.25310129]
[1768673468336,1.29301253,3319.5,3317.6,0.25310129]
[1768673468530,1.03609996,3319.4,3317.6,0.25310129]
[1768673468732,1.03609996,3319.3,3317.6,0.25310129]
[1768673468937,1.03609996,3319.2,3317.6,0.25310129]
[1768673469138,0.97166123,3319.6,3317.6,0.25310129]
[1768673469340,1.29319124,3319.5,3317.6,0.25310129]
[1768673469535,1.03625217,3319.4,3317.6,0.25310129]
[1768673469834,1.03625217,3319.3,3317.6,0.25310129]
[1768673470133,1.03625217,3319.2,3317.6,0.25310129]
[1768673470332,0.97166123,3319.6,3317.6,0.25310129]
[1768673470534,1.29322519,3319.5,3317.6,0.25310129]
[1768673470734,1.03624965,3319.4,3317.6,0.25310129]
[1768673470928,1.03624965,3319.3,3317.6,0.25310129]
[1768673471128,1.03624965,3319.2,3317.6,0.25310129]
[1768673471338,0.97166123,3319.6,3317.6,0.25310129]
[1768673471639,1.29322542,3319.5,3317.6,0.25310129]
[1768673471841,1.03624981,3319.4,3317.6,0.25310129]
[1768673472044,1.03624981,3319.3,3317.6,0.25310129]
[1768673472237,1.03624981,3319.2,3317.6,0.25310129]
[1768673472555,0.97166123,3319.6,3317.6,0.25310129]
[1768673472738,1.29322338,3319.5,3317.6,0.25310129]
[1768673472940,1.0362481,3319.4,3317.6,0.25310129]
[1768673473142,1.0362481,3319.3,3317.6,0.25310129]
[1768673473342,1.0362481,3319.2,3317.6,0.25310129]
[1768673473643,0.97166123,3319.6,3317.6,0.25310129]
[1768673473834,1.2932815,3319.5,3317.6,0.25310129]
[1768673474034,1.03629471,3319.4,3317.6,0.25310129]
[1768673474240,1.03629471,3319.3,3317.6,0.25310129]
[1768673474540,1.03629471,3319.2,3317.6,0.25310129]
[1768673474744,0.97166123,3319.6,3317.6,0.25310129]
[1768673474933,1.29327733,3319.5,3317.6,0.25310129]
[1768673475133,1.03629139,3319.4,3317.6,0.25310129]
[1768673475334,1.03629139,3319.3,3317.6,0.25310129]
[1768673475532,1.03629139,3319.2,3317.6,0.25310129]
[1768673475728,0.97166123,3319.6,3317.6,0.25310129]
[1768673476041,1.29327591,3319.5,3317.6,0.25310129]
[1768673476344,1.29327591,3319.4,3317.6,0.25310129]
[1768673476530,1.03629027,3319.3,3317.6,0.25310129]
[1768673476731,1.03629027,3319.2,3317.6,0.25310129]
[1768673476935,0.97166123,3319.6,3317.6,0.25310129]
[1768673477133,1.29327616,3319.5,3317.6,0.25310129]
[1768673477445,1.29327616,3319.4,3317.6,0.25310129]
[1768673477742,1.03629048,3319.3,3317.6,0.25310129]
[1768673477942,1.03629048,3319.2,3317.6,0.25310129]
[1768673478143,0.97166123,3319.6,3317.6,0.25310129]
[1768673478345,1.29302966,3319.5,3317.6,0.25310129]
[1768673478642,1.29302966,3319.4,3317.6,0.25310129]
[1768673478842,1.0360345,3319.3,3317.6,0.25310129]
[1768673479042,1.0360345,3319.2,3317.6,0.25310129]
[1768673479243,0.97166123,3319.6,3317.6,0.25310129]
[1768673479444,1.29317516,3319.5,3317.6,0.25310129]
[1768673479643,1.29317516,3319.4,3317.6,0.25310129]
[1768673479844,1.03615046,3319.3,3317.6,0.25310129]
[1768673480143,0.97166123,3319.6,3317.6,0.25310129]
[1768673480144,1.03615046,3319.2,3317.6,0.25310129]
[1768673480345,0.97166123,3319.6,3317.6,0.25310129]
[1768673480546,1.2932105,3319.5,3317.6,0.25310129]
[1768673480844,1.2932105,3319.4,3317.6,0.25310129]
[1768673481039,0.97166123,3319.6,3317.6,0.25310129]
[1768673481040,1.03617879,3319.3,3317.6,0.25310129]
[1768673481240,1.03617879,3319.2,3317.6,0.25310129]
[1768673481449,0.97166123,3319.6,3317.6,0.25310129]
[1768673481649,1.29321195,3319.5,3317.6,0.25310129]
[1768673481951,1.29321195,3319.4,3317.6,0.25310129]
[1768673482142,1.03617995,3319.3,3317.6,0.25310129]
[1768673482339,1.03617995,3319.2,3317.6,0.25310129]
[1768673482540,0.00268438,3319.6,3317.6,0.25310129]
[1768673482837,1.29322487,3319.5,3317.6,0.25310129]
[1768673483138,1.29322487,3319.4,3317.6,0.25310129]
[1768673483335,1.03619025,3319.3,3317.6,0.25310129]
[1768673483535,1.03619025,3319.2,3317.6,0.25310129]
[1768673483739,0.00268438,3319.6,3317.6,0.25310129]
[1768673483939,1.29327225,3319.5,3317.6,0.25310129]
[1768673484134,1.29327225,3319.4,3317.6,0.25310129]
[1768673484337,1.03622822,3319.3,3317.6,0.25310129]
[1768673484536,1.03622822,3319.2,3317.6,0.25310129]
[1768673484736,0.00268438,3319.6,3317.6,0.25310129]
[1768673484953,1.29344913,3319.5,3317.6,0.25310129]
[1768673485252,1.29344913,3319.4,3317.6,0.25310129]
[1768673485453,1.03636994,3319.3,3317.6,0.25310129]
[1768673485654,1.03636994,3319.2,3317.6,0.25310129]
[1768673485851,0.00268438,3319.6,3317.6,0.25310129]
[1768673486150,1.2934501,3319.5,3317.6,0.25310129]
[1768673486343,1.2934501,3319.4,3317.6,0.25310129]
[1768673486545,1.29345044,3319.3,3317.6,0.25310129]
[1768673486842,1.29345044,3319.2,3317.6,0.25310129]
[1768673487043,0.00268438,3319.6,3317.6,0.25310129]
[1768673487242,1.29218793,3319.5,3317.6,0.25310129]
[1768673487442,1.29218793,3319.4,3317.6,0.25310129]
[1768673487642,1.29218793,3319.3,3317.6,0.25310129]
[1768673487842,1.29218793,3319.2,3317.6,0.25310129]
[1768673488044,0.00268438,3319.6,3317.6,0.25310129]
[1768673488245,1.29438828,3319.5,3317.6,0.25310129]
[1768673488444,1.29438828,3319.4,3317.6,0.25310129]
[1768673488646,1.29438828,3319.3,3317.6,0.25310129]
[1768673488847,1.03511254,3319.2,3317.6,0.25310129]
[1768673489249,0.00268438,3319.6,3317.6,0.25310129]
[1768673489449,1.03514766,3319.5,3317.6,0.25310129]
[1768673489650,1.03514766,3319.4,3317.6,0.25310129]
[1768673489852,1.03514766,3319.3,3317.6,0.25310129]
[1768673490052,1.03514766,3319.2,3317.6,0.25310129]
[1768673490254,0.15335438,3319.6,3317.6,0.25310129]
[1768673490440,1.03523382,3319.5,3317.6,0.25310129]
[1768673490647,1.29454024,3319.4,3317.6,0.25310129]
[1768673490847,1.29454024,3319.3,3317.6,0.25310129]
[1768673491148,1.29454024,3319.2,3317.6,0.25310129]
[1768673491443,0.15335438,3319.6,3317.6,0.25310129]
[1768673491642,1.29455569,3319.5,3317.6,0.25310129]
[1768673491839,1.29455569,3319.4,3317.6,0.25310129]
[1768673492047,1.29455569,3319.3,3317.6,0.25310129]
[1768673492251,1.29455569,3319.2,3317.6,0.25310129]
[1768673492445,0.15335438,3319.6,3317.6,0.25310129]
[1768673492647,1.29455901,3319.5,3317.6,0.25310129]
[1768673492943,1.29455901,3319.4,3317.6,0.25310129]
[1768673493143,1.29455901,3319.3,3317.6,0.25310129]
[1768673493346,0.96953954,3319.1,3317.8,0.24864784]
[1768673493548,0.96953954,3319.1,3317.9,3.39764784]
[1768673494359,0.96953954,3319.1,3317.9,0.24864784]
[1768673494562,0.96953954,3319.1,3318.0,3.151]
[1768673496160,0.96953954,3319.1,3318.0,3.39964784]
[1768673502365,0.96953954,3319.1,3318.1,0.24864784]
[1768673504166,0.96953954,3319.2,3318.1,0.24864784]
[1768673504962,1.03526512,3319.1,3318.1,0.24864784]
[1768673505172,0.96953954,3319.2,3318.1,0.24864784]
[1768673505359,1.03522468,3319.1,3318.1,0.24864784]
[1768673505659,0.96953954,3319.2,3318.1,0.24864784]
[1768673505863,1.03522468,3319.1,3318.1,0.24864784]
[1768673506071,0.96953954,3319.2,3318.1,0.24864784]
[1768673506370,1.03522418,3319.1,3318.1,0.24864784]
[1768673506569,0.96953954,3319.2,3318.1,0.24864784]
[1768673506768,1.03520034,3319.1,3318.1,0.24864784]
[1768673506972,0.96953954,3319.2,3318.1,0.24864784]
[1768673507161,1.03520034,3319.1,3318.1,0.24864784]
[1768673507361,0.96953954,3319.2,3318.1,0.24864784]
[1768673507562,1.03518257,3319.1,3318.1,0.24864784]
[1768673507863,0.96953954,3319.2,3318.1,0.24864784]
[1768673508160,1.03518069,3319.1,3318.1,0.24864784]
[1768673508360,0.96953954,3319.2,3318.1,0.24864784]
[1768673508558,1.03606892,3319.1,3318.1,0.24864784]
[1768673508757,0.96953954,3319.2,3318.1,0.24864784]
[1768673508961,1.03607446,3319.1,3318.1,0.24864784]
[1768673509158,0.96953954,3319.2,3318.1,0.24864784]
[1768673509367,1.03606185,3319.1,3318.1,0.24864784]
[1768673509571,0.15335438,3319.6,3318.1,0.24864784]
[1768673509774,0.96953954,3319.4,3318.1,0.24864784]
[1768673509973,1.03612361,3319.3,3318.1,0.24864784]
[1768673510181,1.03612361,3319.2,3318.1,0.24864784]
[1768673510381,0.96953954,3319.4,3318.1,0.24864784]
[1768673510681,1.03608335,3319.3,3318.1,0.24864784]
[1768673510883,0.96953954,3319.4,3318.1,0.24864784]
[1768673511073,1.03608981,3319.3,3318.1,0.24864784]
[1768673511272,0.96953954,3319.4,3318.1,0.24864784]
[1768673511473,1.03598702,3319.3,3318.1,0.24864784]
[1768673511673,0.96953954,3319.4,3318.1,0.24864784]
[1768673511973,1.03598592,3319.3,3318.1,0.24864784]
[1768673512269,0.96953954,3319.4,3318.1,0.24864784]
[1768673512571,1.03591542,3319.3,3318.1,0.24864784]
[1768673512773,0.96953954,3319.4,3318.1,0.24864784]
[1768673512969,1.03591542,3319.3,3318.1,0.24864784]
[1768673513172,0.96953954,3319.4,3318.1,0.24864784]
[1768673513383,1.0358595,3319.3,3318.1,0.24864784]
[1768673513573,0.96953954,3319.4,3318.1,0.24864784]
[1768673513774,1.0359263,3319.3,3318.1,0.24864784]
[1768673514072,0.96953954,3319.4,3318.1,0.24864784]
[1768673514270,1.0359323,3319.3,3318.1,0.24864784]
[1768673514489,0.96953954,3319.4,3318.1,0.24864784]
[1768673514675,1.03588679,3319.3,3318.1,0.24864784]
[1768673514993,1.03589508,3319.2,3318.1,0.24864784]
[1768673515283,0.96953954,3319.4,3318.1,0.24864784]
[1768673515482,1.03585618,3319.3,3318.1,0.24864784]
[1768673515782,1.03585618,3319.2,3318.1,0.24864784]
[1768673515982,0.96953954,3319.4,3318.1,0.24864784]
[1768673516179,1.03585607,3319.3,3318.1,0.24864784]
[1768673516378,1.03585607,3319.2,3318.1,0.24864784]
[1768673516579,0.96953954,3319.4,3318.1,0.24864784]
[1768673516781,1.03582315,3319.3,3318.1,0.24864784]
[1768673516977,1.03582315,3319.2,3318.1,0.24864784]
[1768673517177,0.96953954,3319.4,3318.1,0.24864784]
[1768673517378,1.03579439,3319.3,3318.1,0.24864784]
[1768673517578,1.03579439,3319.2,3318.1,0.24864784]
[1768673517780,0.96953954,3319.4,3318.1,0.24864784]
[1768673517977,1.03579385,3319.3,3318.1,0.24864784]
[1768673518179,1.03579385,3319.2,3318.1,0.24864784]
[1768673518478,0.96953954,3319.4,3318.1,0.24864784]
[1768673518680,1.03576987,3319.3,3318.1,0.24864784]
[1768673518887,1.03576987,3319.2,3318.1,0.24864784]
[1768673519077,0.96953954,3319.4,3318.1,0.24864784]
[1768673519277,1.03576987,3319.3,3318.1,0.24864784]
[1768673519488,1.03576987,3319.2,3318.1,0.24864784]
[1768673519789,0.96953954,3319.4,3318.1,0.24864784]
[1768673520095,1.03574916,3319.3,3318.1,0.24864784]
[1768673520288,1.03574916,3319.2,3318.1,0.24864784]
[1768673520588,0.96953954,3319.4,3318.1,0.24864784]
[1768673520788,1.03574138,3319.3,3318.1,0.24864784]
[1768673520987,0.96953954,3319.4,3318.1,0.24864784]
[1768673520988,1.03574138,3319.2,3318.1,0.24864784]
[1768673521191,0.96953954,3319.4,3318.1,0.24864784]
[1768673521393,1.03573453,3319.3,3318.1,0.24864784]
[1768673521580,0.96953954,3319.4,3318.1,0.24864784]
[1768673521581,1.03573453,3319.2,3318.1,0.24864784]
[1768673521780,0.96953954,3319.4,3318.1,0.24864784]
[1768673522079,1.03572361,3319.3,3318.1,0.24864784]
[1768673522390,1.03572361,3319.2,3318.1,0.24864784]
[1768673522689,0.96953954,3319.4,3318.1,0.24864784]
[1768673522887,1.03591689,3319.3,3318.1,0.24864784]
[1768673523086,1.03591689,3319.2,3318.1,0.24864784]
[1768673523391,0.96953954,3319.4,3318.1,0.24864784]
[1768673523586,1.03590862,3319.3,3318.1,0.24864784]
[1768673523886,1.03590862,3319.2,3318.1,0.24864784]
[1768673524187,0.96953954,3319.4,3318.1,0.24864784]
[1768673524380,1.03590288,3319.3,3318.1,0.24864784]
[1768673524579,1.03590288,3319.2,3318.1,0.24864784]
[1768673524877,0.96953954,3319.4,3318.1,0.24864784]
[1768673539200,1.0358996,3319.3,3318.1,0.24864784]
[1768673539387,0.96953954,3319.4,3318.1,0.24864784]
[1768673539694,1.03589976,3319.3,3318.1,0.24864784]
[1768673539894,0.96953954,3319.4,3318.1,0.24864784]
[1768673540087,1.03589976,3319.3,3318.1,0.24864784]
[1768673540288,0.96953954,3319.4,3318.1,0.24864784]
[1768673540488,1.03593986,3319.3,3318.1,0.24864784]
[1768673540787,0.96953954,3319.4,3318.1,0.24864784]
[1768673540989,1.03594005,3319.3,3318.1,0.24864784]
[1768673541190,0.96953954,3319.4,3318.1,0.24864784]
[1768673541389,1.03593917,3319.3,3318.1,0.24864784]
[1768673541702,0.96953954,3319.4,3318.1,0.24864784]
[1768673541997,1.03594081,3319.3,3318.1,0.24864784]
[1768673542198,0.96953954,3319.4,3318.1,0.24864784]
[1768673542400,1.03594065,3319.3,3318.1,0.24864784]
[1768673542696,0.96953954,3319.4,3318.1,0.24864784]
[1768673542896,1.03594041,3319.3,3318.1,0.24864784]
[1768673543097,0.96953954,3319.4,3318.1,0.24864784]
[1768673543398,1.0359403,3319.3,3318.1,0.24864784]
[1768673543600,0.96953954,3319.4,3318.1,0.24864784]
[1768673543901,1.03593958,3319.3,3318.1,0.24864784]
[1768673544093,0.96953954,3319.4,3318.1,0.24864784]
[1768673544294,1.03594037,3319.3,3318.1,0.24864784]
[1768673544492,0.96953954,3319.4,3318.1,0.24864784]
[1768673544791,1.03593955,3319.3,3318.1,0.24864784]
[1768673544991,0.96953954,3319.4,3318.1,0.24864784]
[1768673545191,1.03593955,3319.3,3318.1,0.24864784]
[1768673545404,0.96953954,3319.4,3318.1,0.24864784]
[1768673545702,1.03593973,3319.3,3318.1,0.24864784]
[1768673545901,0.96953954,3319.4,3318.1,0.24864784]
[1768673546103,1.03594077,3319.3,3318.1,0.24864784]
[1768673546299,0.96953954,3319.4,3318.1,0.24864784]
[1768673546500,1.03593983,3319.3,3318.1,0.24864784]
[1768673546700,0.96953954,3319.4,3318.1,0.24864784]
[1768673546901,1.03594059,3319.3,3318.1,0.24864784]
[1768673547207,0.96953954,3319.4,3318.1,0.24864784]
[1768673547501,1.03594095,3319.3,3318.1,0.24864784]
[1768673547703,0.96953954,3319.4,3318.1,0.24864784]
[1768673547905,1.03594147,3319.3,3318.1,0.24864784]
[1768673548095,0.96953954,3319.4,3318.1,0.24864784]
[1768673548296,1.03594147,3319.3,3318.1,0.24864784]
[1768673548494,0.96953954,3319.4,3318.1,0.24864784]
[1768673548793,1.03594323,3319.3,3318.1,0.24864784]
[1768673548994,0.96953954,3319.4,3318.1,0.24864784]
[1768673549196,1.03594323,3319.3,3318.1,0.24864784]
[1768673549407,0.96953954,3319.4,3318.1,0.24864784]
[1768673549594,1.0359425,3319.3,3318.1,0.24864784]
[1768673549893,0.96953954,3319.4,3318.1,0.24864784]
[1768673550092,1.03594232,3319.3,3318.1,0.24864784]
[1768673550293,0.96953954,3319.4,3318.1,0.24864784]
[1768673550508,1.0359394,3319.3,3318.1,0.24864784]
[1768673550701,0.96953954,3319.4,3318.1,0.24864784]
[1768673551001,1.03593265,3319.3,3318.1,0.24864784]
[1768673551201,0.96953954,3319.4,3318.1,0.24864784]
[1768673551401,1.03593346,3319.3,3318.1,0.24864784]
[1768673551604,0.96953954,3319.4,3318.1,0.24864784]
[1768673551804,1.03593397,3319.3,3318.1,0.24864784]
[1768673552002,0.96953954,3319.4,3318.1,0.24864784]
[1768673552200,1.03593284,3319.3,3318.1,0.24864784]
[1768673552401,0.96953954,3319.4,3318.1,0.24864784]
[1768673552601,1.03593761,3319.3,3318.1,0.24864784]
[1768673552801,0.96953954,3319.4,3318.1,0.24864784]
[1768673553002,1.0359376,3319.3,3318.1,0.24864784]
[1768673553205,0.96953954,3319.4,3318.1,0.24864784]
[1768673553405,1.0359376,3319.3,3318.1,0.24864784]
[1768673553606,0.15335438,3319.6,3318.1,0.24864784]
[1768673553806,1.29760351,3319.5,3318.1,0.24864784]
[1768673554008,1.03594198,3319.4,3318.1,0.24864784]
[1768673554202,1.03594198,3319.3,3318.1,0.24864784]
[1768673554402,0.15335438,3319.6,3318.1,0.24864784]
[1768673554603,1.29758735,3319.5,3318.1,0.24864784]
[1768673554901,1.03592906,3319.4,3318.1,0.24864784]
[1768673555101,1.03592906,3319.3,3318.1,0.24864784]
[1768673555398,1.03592906,3319.2,3318.1,0.24864784]
[1768673555600,0.15335438,3319.6,3318.1,0.24864784]
[1768673555800,1.29759426,3319.5,3318.1,0.24864784]
[1768673556007,1.03593456,3319.4,3318.1,0.24864784]
[1768673556203,1.03593456,3319.3,3318.1,0.24864784]
[1768673556405,1.03593456,3319.2,3318.1,0.24864784]
[1768673556704,0.15335438,3319.6,3318.1,0.24864784]
[1768673556904,1.29760444,3319.5,3318.1,0.24864784]
[1768673557097,1.03594266,3319.4,3318.1,0.24864784]
[1768673557303,1.03594266,3319.3,3318.1,0.24864784]
[1768673557602,1.03594266,3319.2,3318.1,0.24864784]
[1768673557802,0.15335438,3319.6,3318.1,0.24864784]
[1768673558114,1.29734539,3319.5,3318.1,0.24864784]
[1768673558312,1.03573582,3319.4,3318.1,0.24864784]
[1768673558505,1.03573582,3319.3,3318.1,0.24864784]
[1768673558706,1.03573582,3319.2,3318.1,0.24864784]
[1768673558906,0.15335438,3319.6,3318.1,0.24864784]
[1768673559107,1.29736222,3319.5,3318.1,0.24864784]
[1768673559299,1.03574914,3319.4,3318.1,0.24864784]
[1768673559501,1.03574914,3319.3,3318.1,0.24864784]
[1768673559701,1.03574914,3319.2,3318.1,0.24864784]
[1768673559905,0.15335438,3319.6,3318.1,0.24864784]
[1768673560119,1.29736356,3319.5,3318.1,0.24864784]
[1768673560320,1.03575017,3319.4,3318.1,0.24864784]
[1768673560515,1.03575017,3319.3,3318.1,0.24864784]
[1768673560814,1.03575017,3319.2,3318.1,0.24864784]
[1768673561006,0.15335438,3319.6,3318.1,0.24864784]
[1768673561203,1.29736194,3319.5,3318.1,0.24864784]
[1768673561406,1.03574887,3319.4,3318.1,0.24864784]
[1768673561621,1.03574887,3319.3,3318.1,0.24864784]
[1768673561820,1.03574887,3319.2,3318.1,0.24864784]
[1768673562120,0.15335438,3319.6,3318.1,0.24864784]
[1768673562321,1.29724906,3319.5,3318.1,0.24864784]
[1768673562618,1.03565868,3319.4,3318.1,0.24864784]
[1768673562820,1.03565868,3319.3,3318.1,0.24864784]
[1768673563017,1.03565868,3319.2,3318.1,0.24864784]
[1768673563221,0.15335438,3319.6,3318.1,0.24864784]
[1768673563420,1.2972461,3319.5,3318.1,0.24864784]
[1768673563621,1.03565641,3319.4,3318.1,0.24864784]
[1768673563822,1.03565641,3319.3,3318.1,0.24864784]
[1768673564117,1.03565641,3319.2,3318.1,0.24864784]
[1768673564422,0.15335438,3319.6,3318.1,0.24864784]
[1768673564718,1.29725017,3319.5,3318.1,0.24864784]
[1768673564913,1.03565978,3319.4,3318.1,0.24864784]
[1768673565114,1.03565978,3319.3,3318.1,0.24864784]
[1768673565318,0.15335438,3319.6,3318.1,0.24864784]
[1768673565617,1.29724674,3319.5,3318.1,0.24864784]
[1768673565915,1.03565705,3319.4,3318.1,0.24864784]
[1768673566122,1.03565705,3319.3,3318.1,0.24864784]
[1768673566327,0.15335438,3319.6,3318.1,0.24864784]
[1768673566623,1.29723923,3319.5,3318.1,0.24864784]
[1768673566822,1.03565108,3319.4,3318.1,0.24864784]
[1768673567014,1.03565108,3319.3,3318.1,0.24864784]
[1768673567218,0.15335438,3319.6,3318.1,0.24864784]
[1768673567419,1.2972393,3319.5,3318.1,0.24864784]
[1768673567619,1.03565114,3319.4,3318.1,0.24864784]
[1768673567818,1.03565114,3319.3,3318.1,0.24864784]
[1768673568017,0.15335438,3319.6,3318.1,0.24864784]
[1768673568217,1.29723877,3319.5,3318.1,0.24864784]
[1768673568417,1.03565074,3319.4,3318.1,0.24864784]
[1768673568613,1.03565074,3319.3,3318.1,0.24864784]
[1768673568814,0.15335438,3319.6,3318.1,0.24864784]
[1768673569123,1.29683376,3319.5,3318.1,0.24864784]
[1768673569320,1.0352458,3319.4,3318.1,0.24864784]
[1768673569621,1.0352458,3319.3,3318.1,0.24864784]
[1768673569825,0.15335438,3319.6,3318.1,0.24864784]
[1768673570019,1.29680116,3319.5,3318.1,0.24864784]
[1768673570320,1.03521979,3319.4,3318.1,0.24864784]
[1768673570520,1.03521979,3319.3,3318.1,0.24864784]
[1768673570721,0.15335438,3319.6,3318.1,0.24864784]
[1768673570914,1.29680103,3319.5,3318.1,0.24864784]
[1768673571115,1.0352197,3319.4,3318.1,0.24864784]
[1768673571315,1.0352197,3319.3,3318.1,0.24864784]
[1768673571515,0.15335438,3319.6,3318.1,0.24864784]
[1768673571715,1.29680132,3319.5,3318.1,0.24864784]
[1768673571924,1.03521995,3319.4,3318.1,0.24864784]
[1768673572224,1.03521995,3319.3,3318.1,0.24864784]
[1768673572426,0.15335438,3319.6,3318.1,0.24864784]
[1768673572626,1.29682522,3319.5,3318.1,0.24864784]
[1768673572828,0.15335438,3319.6,3318.1,0.24864784]
[1768673572829,1.03523904,3319.4,3318.1,0.24864784]
[1768673573030,1.03523904,3319.3,3318.1,0.24864784]
[1768673573332,0.15335438,3319.6,3318.1,0.24864784]
[1768673573523,1.29680801,3319.5,3318.1,0.24864784]
[1768673573717,1.03522523,3319.4,3318.1,0.24864784]
[1768673573918,1.03522523,3319.3,3318.1,0.24864784]
[1768673574118,0.15335438,3319.6,3318.1,0.24864784]
[1768673574328,1.29680586,3319.5,3318.1,0.24864784]
[1768673574627,1.03522361,3319.4,3318.1,0.24864784]
[1768673574927,1.03522361,3319.3,3318.1,0.24864784]
[1768673575227,0.15335438,3319.6,3318.1,0.24864784]
[1768673575425,1.29681362,3319.5,3318.1,0.24864784]
[1768673575624,1.03522983,3319.4,3318.1,0.24864784]
[1768673575824,1.03522983,3319.3,3318.1,0.24864784]
[1768673576029,0.15335438,3319.6,3318.1,0.24864784]
[1768673576218,1.29681358,3319.5,3318.1,0.24864784]
[1768673576512,1.0352298,3319.4,3318.1,0.24864784]
[1768673576711,1.0352298,3319.3,3318.1,0.24864784]
[1768673576916,0.15335438,3319.6,3318.1,0.24864784]
[1768673577221,1.29681684,3319.5,3318.1,0.24864784]
[1768673577420,1.29681684,3319.4,3318.1,0.24864784]
[1768673577627,1.29681684,3319.3,3318.1,0.24864784]
[1768673577829,0.15335438,3319.6,3318.1,0.24864784]
[1768673578029,1.29900816,3319.5,3318.1,0.24864784]
[1768673578327,1.29900816,3319.4,3318.1,0.24864784]
[1768673578524,1.29900816,3319.3,3318.1,0.24864784]
[1768673578731,0.15335438,3319.6,3318.1,0.24864784]
[1768673578935,1.29901554,3319.5,3318.1,0.24864784]
[1768673579231,1.29901554,3319.4,3318.1,0.24864784]
[1768673579423,1.29901554,3319.3,3318.1,0.24864784]
[1768673579622,0.15335438,3319.6,3318.1,0.24864784]
[1768673579822,1.29901433,3319.5,3318.1,0.24864784]
[1768673580030,1.29901433,3319.4,3318.1,0.24864784]
[1768673580233,0.15335438,3319.6,3318.1,0.24864784]
[1768673580432,1.29902154,3319.5,3318.1,0.24864784]
[1768673580627,1.29902154,3319.4,3318.1,0.24864784]
[1768673580827,0.15335438,3319.6,3318.1,0.24864784]
[1768673581029,1.29902958,3319.5,3318.1,0.24864784]
[1768673581334,1.29902958,3319.4,3318.1,0.24864784]
[1768673581528,0.15335438,3319.6,3318.1,0.24864784]
[1768673581730,1.29885626,3319.5,3318.1,0.24864784]
[1768673581928,1.29885626,3319.4,3318.1,0.24864784]
[1768673582230,0.15335438,3319.6,3318.1,0.24864784]
[1768673582431,1.29874951,3319.5,3318.1,0.24864784]
[1768673582730,1.29874951,3319.4,3318.1,0.24864784]
[1768673582932,0.15335438,3319.6,3318.1,0.24864784]
[1768673583132,1.29873909,3319.5,3318.1,0.24864784]
[1768673583335,1.29873909,3319.4,3318.1,0.24864784]
[1768673583535,0.26372478,3319.3,3318.1,0.24864784]
[1768673583727,0.15335438,3319.6,3318.1,0.24864784]
[1768673583925,1.29873155,3319.5,3318.1,0.24864784]
[1768673584125,1.29873155,3319.4,3318.1,0.24864784]
[1768673584326,0.26372309,3319.3,3318.1,0.24864784]
[1768673584527,0.15335438,3319.6,3318.1,0.24864784]
[1768673584830,1.29866194,3319.5,3318.1,0.24864784]
[1768673585130,1.29866194,3319.4,3318.1,0.24864784]
[1768673585330,0.15335438,3319.6,3318.1,0.24864784]
[1768673585532,1.29866228,3319.5,3318.1,0.24864784]
[1768673585732,1.29866228,3319.4,3318.1,0.24864784]
[1768673586032,0.15335438,3319.6,3318.1,0.24864784]
[1768673586228,1.2986622,3319.5,3318.1,0.24864784]
[1768673586429,1.2986622,3319.4,3318.1,0.24864784]
[1768673586731,0.15335438,3319.6,3318.1,0.24864784]
[1768673587028,1.29865704,3319.5,3318.1,0.24864784]
[1768673587228,1.03494906,3319.4,3318.1,0.24864784]
[1768673587429,0.15335438,3319.6,3318.1,0.24864784]
[1768673587729,1.29865945,3319.5,3318.1,0.24864784]
[1768673588030,1.03495047,3319.4,3318.1,0.24864784]
[1768673588327,0.15335438,3319.6,3318.1,0.24864784]
[1768673588528,1.29865953,3319.5,3318.1,0.24864784]
[1768673588735,1.03495104,3319.4,3318.1,0.24864784]
[1768673588931,0.15335438,3319.6,3318.1,0.24864784]
[1768673589230,1.29864182,3319.5,3318.1,0.24864784]
[1768673589426,1.03493693,3319.4,3318.1,0.24864784]
[1768673589627,0.15335438,3319.6,3318.1,0.24864784]
[1768673589827,1.29865646,3319.5,3318.1,0.24864784]
[1768673590028,1.0349486,3319.4,3318.1,0.24864784]
[1768673590228,0.15335438,3319.6,3318.1,0.24864784]
[1768673590429,1.2986579,3319.5,3318.1,0.24864784]
[1768673590628,1.03494976,3319.4,3318.1,0.24864784]
[1768673590830,0.15335438,3319.6,3318.1,0.24864784]
[1768673591029,1.29865866,3319.5,3318.1,0.24864784]
[1768673591232,1.03495036,3319.4,3318.1,0.24864784]
[1768673591530,0.15335438,3319.6,3318.1,0.24864784]
[1768673591830,1.2986244,3319.5,3318.1,0.24864784]
[1768673592140,1.03492246,3319.4,3318.1,0.24864784]
[1768673592337,0.15335438,3319.6,3318.1,0.24864784]
[1768673592539,1.29862274,3319.5,3318.1,0.24864784]
[1768673592736,1.03492163,3319.4,3318.1,0.24864784]
[1768673592936,0.15335438,3319.6,3318.1,0.24864784]
[1768673593139,1.29861136,3319.5,3318.1,0.24864784]
[1768673593436,1.03491256,3319.4,3318.1,0.24864784]
[1768673593736,0.15335438,3319.6,3318.1,0.24864784]
[1768673593937,1.29861057,3319.5,3318.1,0.24864784]
[1768673594132,1.03491191,3319.4,3318.1,0.24864784]
[1768673594440,0.15335438,3319.6,3318.1,0.24864784]
[1768673594631,1.29860989,3319.5,3318.1,0.24864784]
[1768673594832,1.03491136,3319.4,3318.1,0.24864784]
[1768673595031,1.03491132,3319.3,3318.1,0.24864784]
[1768673595243,0.15335438,3319.6,3318.1,0.24864784]
[1768673595539,1.2986092,3319.5,3318.1,0.24864784]
[1768673595839,1.0349108,3319.4,3318.1,0.24864784]
[1768673596039,1.0349108,3319.3,3318.1,0.24864784]
[1768673596348,0.15335438,3319.6,3318.1,0.24864784]
[1768673596540,1.29860609,3319.5,3318.1,0.24864784]
[1768673596740,1.03490831,3319.4,3318.1,0.24864784]
[1768673596935,1.03490831,3319.3,3318.1,0.24864784]
[1768673597130,1.2240044,3319.6,3317.5,0.26617848]
[1768673597332,1.29857034,3319.5,3317.5,0.26617848]
[1768673597639,1.03487923,3319.4,3317.5,0.26617848]
[1768673597840,1.2240044,3319.6,3317.5,0.26617848]
[1768673598034,1.29846067,3319.5,3317.5,0.26617848]
[1768673598235,1.03479171,3319.4,3317.5,0.26617848]
[1768673598538,1.2240044,3319.6,3317.5,0.26617848]
[1768673598737,1.29996041,3319.5,3317.5,0.26617848]
[1768673599037,1.03410343,3319.4,3317.5,0.26617848]